lending/lending_fUSD_20240130
["ID","MTS","AMOUNT","RATE_DAILY","PERIOD"]
[313004183,1706587843301,-5553.14427735,0.0003,2]
[313004184,1706587843313,-1800.63132336,0.0003,2]
[313004185,1706587843324,-347.18442988,0.0003,2]
[313004186,1706587843335,-32491.6597292,0.0003,2]
[313004189,1706587843347,-1317.38623165,0.0003,2]
[313004191,1706587843359,-556.75828576,0.0003,2]
[313004194,1706587843387,-388.88743588,0.00025029,2]
[313004195,1706587843397,-11.41738363,0.0003,2]
[313004196,1706587843408,-510.38064613,0.0003,2]
[313004197,1706587843420,-1559.4888852,0.0003,2]
[313004198,1706587843431,-6804.51803697,0.0003,2]
[313004199,1706587843443,-7409.86951319,0.0003,2]
[313004200,1706587843455,-30370.84040493,0.0003,2]
[313004201,1706587843466,-1094.71641432,0.0003,2]
[313004202,1706587843478,-2465.0,0.0003,2]
[313004204,1706587843498,-278.02097649,0.0003,2]
[313004212,1706587846005,-276.9108,0.0003,2]
[313004219,1706587846061,-51111.23411899,0.0003,2]
[313004275,1706587846585,-121610.28688277,0.0003,2]
[313004278,1706587846601,-42002.42162512,0.0003,2]
[313004321,1706587857030,3217.17702554,0.00026,7]
[313004322,1706587969934,841.46897043,0.00026,7]
[313004323,1706588053667,151.0,0.0002,2]
[313004324,1706588331519,189.86,0.00029722,120]
[313004326,1706588952114,-279.99458956,0.00022881,2]
[313004327,1706588952134,-1374.81657454,0.00022882,2]
[313004328,1706588952158,-492.7479,0.00022899,2]
[313004329,1706588952179,-181.4,0.00027397,2]
[313004330,1706588952201,-181.37,0.00027397,2]
[313004331,1706588952222,-167.89,0.00028039,2]
[313004332,1706588952242,-200.0,0.00028072,2]
[313004333,1706588952261,-439.71428451,0.00028094,2]
[313004334,1706588952280,-206.85365988,0.00028095,2]
[313004335,1706588952299,-19045.58215759,0.00028096,2]
[313004336,1706588952318,-1449.08,0.00028097,2]
[313004337,1706588952340,-1867.87,0.00028115,2]
[313004338,1706588952361,-3496.06,0.00028179,2]
[313004339,1706588952383,-174.66306246,0.00028184,2]
[313004340,1706588952403,-499.99,0.00028184,2]
[313004341,1706588952426,-150.0,0.00028194,2]
[313004342,1706588952448,-150.0,0.0002823,2]
[313004343,1706588952469,-176.73,0.00028284,2]
[313004344,1706588952489,-3496.06,0.00028342,2]
[313004345,1706588952511,-231.98,0.00028502,2]
[313004346,1706588952532,-3496.06,0.00028505,2]
[313004347,1706588952554,-231.98,0.0002858,2]
[313004348,1706588952576,-150.0,0.00028656,2]
[313004349,1706588952596,-231.98,0.00028658,2]
[313004350,1706588952617,-3496.06,0.00028668,2]
[313004351,1706588952639,-231.98,0.00028737,2]
[313004352,1706588952661,-309.89710717,0.00028796,2]
[313004353,1706588952687,-158.9509689,0.00028796,2]
[313004354,1706588952709,-1863.04,0.00028805,2]
[313004355,1706588952729,-231.98,0.00028815,2]
[313004356,1706588952750,-1534.5122481,0.0002883,2]
[313004357,1706588952780,-769.54548,0.0002883,2]
[313004358,1706588964203,-355.65,0.00026468,2]
[313004359,1706588964226,-2000.0,0.00028386,2]
[313004360,1706588964248,-355.65,0.00028732,2]
[313004361,1706588964267,-1192.0022719,0.0002883,2]
[313004362,1706588964289,-176.73,0.00028832,2]
[313004363,1706588964310,-200.0,0.0002884,2]
[313004364,1706588964330,-231.98,0.00028893,2]
[313004365,1706588964349,-231.98,0.00028971,2]
[313004366,1706588964368,-3496.06,0.00028993,2]
[313004367,1706588964387,-273.01156641,0.00029001,2]
[313004368,1706588964405,-245.95187144,0.00029002,2]
[313004369,1706588964423,-8648.3,0.00029004,2]
[313004370,1706588964444,-231.98,0.00029049,2]
[313004371,1706588964466,-250.0,0.00029092,2]
[313004372,1706588964487,-195.2,0.0002911,2]
[313004373,1706588964510,-344.74,0.00029119,2]
[313004374,1706588964532,-231.98,0.00029127,2]
[313004375,1706588964553,-1867.87,0.00029156,2]
[313004376,1706588964573,-1906.61614364,0.00029156,2]
[313004377,1706588966104,-283.09817405,0.00029156,2]
[313004378,1706588974097,-2048.3566,0.00028094,2]
[313004379,1706588983367,11401.54783867,0.00026354,10]
[313004380,1706588985793,184.60168331,0.00022292,2]
[313004381,1706588989286,155.0,0.00022292,2]
[313004382,1706588994036,4169.09021484,0.00022292,2]
[313004383,1706589007284,155.0,0.00022292,2]
[313004386,1706589012030,4169.09021484,0.00022292,2]
[313004387,1706589018704,284.9333869,0.00022292,2]
[313004388,1706589025284,155.0,0.0002,2]
[313004389,1706589025878,155.0,0.00022292,2]
[313004390,1706589026970,260.75269255,0.00022292,2]
[313004391,1706589027219,235.41505346,0.00022292,2]
[313004392,1706589030751,267.35311566,0.00022292,2]
[313004393,1706589031413,1122.58456716,0.00022292,2]
[313004402,1706589032142,-1000.0,0.00024888,2]
[313004403,1706589032152,-732.32661051,0.00024889,2]
[313004404,1706589032166,-561.9849751,0.00025002,2]
[313004405,1706589032176,-432.05791587,0.00025282,2]
[313004406,1706589032188,-797.78526783,0.00025282,2]
[313004407,1706589032198,-276.15382235,0.00025282,2]
[313004408,1706589032209,-162.03710518,0.00026354,2]
[313004409,1706589032219,-251.99014535,0.0002675,2]
[313004410,1706589032229,-512.2020495,0.00026968,2]
[313004411,1706589032243,-744.64168612,0.00026968,2]
[313004412,1706589032265,-689.30241408,0.00026968,2]
[313004413,1706589032279,-562.43544538,0.00026968,2]
[313004414,1706589032291,-689.2439063,0.00026968,2]
[313004415,1706589032301,-176.73,0.00027668,2]
[313004416,1706589032311,-235.35775349,0.00027811,2]
[313004417,1706589032350,-46.42276447,0.00027811,2]
[313004418,1706589032359,-300.0,0.00028091,2]
[313004419,1706589032369,-289.54850282,0.00028092,2]
[313004420,1706589032379,-3164.13875884,0.00028092,2]
[313004421,1706589032388,-137.28103616,0.00028092,2]
[313004422,1706589032400,-78.77303486,0.00028092,2]
[313004423,1706589032411,-247.19157499,0.00028093,2]
[313004424,1706589032420,-42.15297239,0.00028093,2]
[313004425,1706589032432,-208.65630546,0.00028093,2]
[313004426,1706589032442,-266.01806587,0.00028093,2]
[313004427,1706589032452,-301.89135144,0.00028093,2]
[313004428,1706589032461,-282.79550533,0.00028094,2]
[313004429,1706589032487,-1232.77934096,0.00028094,2]
[313004430,1706589032498,-525.01690073,0.00028094,2]
[313004431,1706589032523,-9929.65075345,0.00028094,2]
[313004432,1706589032533,-212.27,0.00028108,2]
[313004433,1706589032544,-230.74,0.00028108,2]
[313004434,1706589032553,-242.39188445,0.00028148,2]
[313004435,1706589033678,-298.69050621,0.00028148,2]
[313004443,1706589034033,4169.09021484,0.00016719,2]
[313004444,1706589036719,284.9333869,0.00022292,2]
[313004447,1706589038279,-187.01,0.00028071,2]
[313004448,1706589038289,-562.57322646,0.00028092,2]
[313004449,1706589038298,-1706.93760934,0.00028148,2]
[313004450,1706589038307,-202.09950254,0.00028216,2]
[313004451,1706589038317,-985.38705304,0.00028385,2]
[313004452,1706589038326,-168.23898664,0.00028602,2]
[313004453,1706589038351,-94.97101336,0.00028602,2]
[313004454,1706589038361,-247.6682769,0.00028989,2]
[313004455,1706589038370,-194.05223043,0.00029156,2]
[313004456,1706589038386,-1112.29345188,0.00029156,2]
[313004457,1706589038396,-250.0,0.00029171,2]
[313004458,1706589038406,-251.7794,0.00029184,2]
[313004459,1706589038415,-231.98,0.00029206,2]
[313004460,1706589038424,-304.11280151,0.00029281,2]
[313004461,1706589038436,-218.21034385,0.00029281,2]
[313004462,1706589038445,-260.70555078,0.00029282,2]
[313004463,1706589038454,-690.90670373,0.00029283,2]
[313004464,1706589038463,-296.08247319,0.00029283,2]
[313004465,1706589038473,-233.6686873,0.00029283,2]
[313004466,1706589038482,-285.95951761,0.00029283,2]
[313004467,1706589038491,-231.98,0.00029284,2]
[313004468,1706589038501,-3156.56920969,0.00029284,2]
[313004469,1706589038536,534.97170189,0.00022292,2]
[313004470,1706589038551,-626.62065293,0.00029284,2]
[313004471,1706589038572,-34706.81894764,0.00029284,2]
[313004481,1706589038648,-2021.63286911,0.00029284,2]
[313004483,1706589038668,-2904.58117493,0.00029284,2]
[313004488,1706589038739,-1725.061895,0.00029284,2]
[313004492,1706589040713,-2877.56,0.00028795,2]
[313004493,1706589040723,-2629.1844118,0.00029284,2]
[313004494,1706589040943,-15635.42832073,0.00029284,2]
[313004495,1706589040955,-913.72473074,0.00029284,2]
[313004496,1706589040972,-843.56738472,0.00029284,2]
[313004497,1706589040984,-6285.25396417,0.00029284,2]
[313004498,1706589041592,-31395.06060144,0.00029284,2]
[313004499,1706589041602,-3496.06,0.00029319,2]
[313004500,1706589041611,-231.98,0.00029362,2]
[313004501,1706589041621,-242.91736611,0.00029425,2]
[313004502,1706589041631,-231.98,0.0002944,2]
[313004503,1706589041640,-187.01,0.00029475,2]
[313004504,1706589041649,-3496.06,0.00029482,2]
[313004505,1706589041659,-231.98,0.00029518,2]
[313004506,1706589041668,-231.98,0.00029596,2]
[313004507,1706589041677,-3496.06,0.00029644,2]
[313004508,1706589041686,-231.98,0.00029674,2]
[313004509,1706589041696,-124234.92338189,0.000297,2]
[313004510,1706589041705,-311.3724684,0.00029722,2]
[313004511,1706589041714,-285.97535667,0.00029722,3]
[313004512,1706589041723,-8431.3724444,0.00029722,2]
[313004513,1706589041733,-231.98,0.00029753,2]
[313004514,1706589041742,-150.0,0.00029779,2]
[313004515,1706589041752,-231.98,0.00029831,2]
[313004516,1706589041762,-843.84,0.00029867,2]
[313004517,1706589041771,-69761.6946,0.00029898,2]
[313004518,1706589041780,-231.98,0.00029909,2]
[313004519,1706589041790,-486.8132,0.00029931,2]
[313004520,1706589041799,-216.75702514,0.00029966,2]
[313004521,1706589041808,-231.98,0.00029987,2]
[313004522,1706589041818,-4822.65257055,0.00029998,2]
[313004523,1706589041827,-1598.65999988,0.00029999,2]
[313004524,1706589041836,-266.5950584,0.00029999,2]
[313004525,1706589041846,-942.13285242,0.00029999,2]
[313004526,1706589041855,-3898.41078762,0.00029999,2]
[313004527,1706589041865,-236.9766079,0.00029999,2]
[313004528,1706589041874,-155.0,0.0003,2]
[313004529,1706589041884,-1428.10392785,0.0003,2]
[313004530,1706589041893,-982.35506,0.0003,2]
[313004531,1706589041903,-527.56,0.00030031,2]
[313004532,1706589041913,-181.4,0.00030137,2]
[313004533,1706589041923,-181.37,0.00030137,2]
[313004534,1706589041932,-1867.87,0.00030196,2]
[313004535,1706589041942,-165.96,0.00030208,2]
[313004536,1706589041951,-265.59,0.00030281,2]
[313004537,1706589041960,-155.45,0.00030348,2]
[313004538,1706589041970,-265.59,0.00030569,2]
[313004539,1706589041979,-344.74,0.00030763,2]
[313004540,1706589041988,-155.45,0.00030769,2]
[313004541,1706589041998,-265.59,0.00030858,2]
[313004542,1706589042007,-187.01,0.00030878,2]
[313004543,1706589042016,-355.65,0.00030996,2]
[313004544,1706589042026,-265.59,0.00031146,2]
[313004545,1706589042035,-155.45,0.00031191,2]
[313004546,1706589042045,-1867.87,0.00031236,2]
[313004547,1706589042054,-5630.88659937,0.000314,2]
[313004548,1706589042064,-500.0,0.000314,2]
[313004549,1706589042074,-303.547175,0.000314,7]
[313004550,1706589042083,-265.59,0.00031435,2]
[313004551,1706589042093,-155.45,0.00031612,2]
[313004552,1706589042102,-155.78,0.00031623,2]
[313004553,1706589042112,-250.0,0.00031687,2]
[313004554,1706589042121,-265.59,0.00031723,2]
[313004555,1706589042130,-265.59,0.00032011,2]
[313004556,1706589042140,-166.46,0.00032027,2]
[313004557,1706589042150,-155.45,0.00032034,2]
[313004558,1706589042161,-1867.87,0.00032276,2]
[313004559,1706589042171,-187.01,0.00032282,2]
[313004560,1706589042180,-265.59,0.000323,2]
[313004561,1706589042189,-344.74,0.00032407,2]
[313004562,1706589042200,-155.45,0.00032455,2]
[313004563,1706589042209,-180.0,0.00032542,2]
[313004564,1706589042218,-265.59,0.00032588,2]
[313004565,1706589042227,-401.31836125,0.00032677,6]
[313004566,1706589042237,-5739.562,0.0003268,2]
[313004567,1706589042246,-195.2,0.00032749,2]
[313004568,1706589042256,-152.49060318,0.00032767,2]
[313004569,1706589042266,-224.20938351,0.00032774,2]
[313004570,1706589042275,-3328.75655338,0.00032777,2]
[313004571,1706589042301,-372.03993255,0.00032777,2]
[313004572,1706589042313,-1145.10000001,0.00032777,2]
[313004573,1706589042323,-576.74453379,0.00032777,2]
[313004574,1706589042365,-6809.0625918,0.00032777,2]
[313004575,1706589042377,-793.57873986,0.00032777,2]
[313004576,1706589042389,-713.6500075,0.00032777,2]
[313004577,1706589042401,-403.47768796,0.00032777,2]
[313004578,1706589042463,155.0,0.00022292,2]
[313004583,1706589043215,235.41505346,0.00022292,2]
[313004589,1706589044665,-217.70820273,0.0003201,4]
[313004590,1706589044675,-286305.07631551,0.00032777,2]
[313004591,1706589044687,-288.71974104,0.00032777,2]
[313004592,1706589044698,-651.01243477,0.00032777,2]
[313004593,1706589044768,-4139.82888672,0.00032777,2]
[313004594,1706589044788,-1010.20925933,0.00032777,2]
[313004595,1706589044800,-4474.55107622,0.00032777,2]
[313004596,1706589044812,-291.23162982,0.00032777,2]
[313004597,1706589044827,-2390.5060322,0.00032777,2]
[313004598,1706589044839,-1210.36080118,0.00032777,2]
[313004599,1706589044851,-572.09977409,0.00032777,2]
[313004600,1706589044863,-702.38304042,0.00032777,2]
[313004601,1706589044879,-814.20859108,0.00032777,2]
[313004602,1706589044894,-432.0,0.00032777,2]
[313004603,1706589045300,189.13904528,0.0002,2]
[313004605,1706589046015,283.46338166,0.00022292,2]
[313004607,1706589046243,-422.11193963,0.00029282,2]
[313004608,1706589046256,-325.87400702,0.00029282,2]
[313004609,1706589046278,-865.07617275,0.00029282,2]
[313004610,1706589046289,-316.75908617,0.00029282,2]
[313004611,1706589046300,-725.0649988,0.00029282,2]
[313004612,1706589046329,-644.28818466,0.00029282,2]
[313004613,1706589046388,-10376.37988028,0.00029282,2]
[313004614,1706589046398,-457.78772204,0.00032676,4]
[313004615,1706589046408,-382.30085839,0.00032677,6]
[313004616,1706589046419,-69332.97809331,0.00032777,2]
[313004617,1706589046429,-2036.80171698,0.00032777,4]
[313004618,1706589046439,-11522.82222131,0.0003278,5]
[313004619,1706589046467,-649.64689608,0.0003278,5]
[313004620,1706589046578,-2387.97054214,0.0003278,5]
[313004621,1706589046615,-28989.34720381,0.0003278,5]
[313004622,1706589046627,-500.62895699,0.0003278,5]
[313004624,1706589046638,-871.02,0.0003278,5]
[313004626,1706589046650,-328.53934177,0.0003278,5]
[313004627,1706589046670,-3549.62626472,0.0003278,5]
[313004628,1706589046681,-625.15762086,0.0003278,5]
[313004629,1706589046976,260.75269255,0.00022292,2]
[313004630,1706589048745,267.35311566,0.00022292,2]
[313004631,1706589049450,1122.58456716,0.00022292,2]
[313004632,1706589052706,284.9333869,0.00022292,2]
[313004633,1706589054034,4169.09021484,0.00016719,2]
[313004634,1706589056249,534.97170189,0.00022292,2]
[313004635,1706589059239,235.41505346,0.00022292,2]
[313004636,1706589063898,202.7392099,0.00022292,2]
[313004637,1706589064975,260.75269255,0.00022292,2]
[313004638,1706589065441,876.80602355,0.00022292,2]
[313004639,1706589066020,283.46338166,0.00022292,2]
[313004640,1706589066744,267.35311566,0.00022292,2]
[313004641,1706589070710,284.9333869,0.00022292,2]
[313004642,1706589074254,534.97170189,0.00016719,2]
[313004643,1706589076042,4169.09021484,0.00016719,2]
[313004644,1706589079239,235.41505346,0.00016719,2]
[313004645,1706589084010,283.46338166,0.0002,2]
[313004646,1706589084743,267.35311566,0.00016719,2]
[313004647,1706589088709,284.9333869,0.00016719,2]
[313004648,1706589088979,260.75269255,0.00016719,2]
[313004649,1706589094043,4169.09021484,0.00012539,2]
[313004650,1706589094256,534.97170189,0.00016719,2]
[313004651,1706589095230,235.41505346,0.00016719,2]
[313004652,1706589103206,260.75269255,0.00016719,2]
[313004653,1706589104015,283.46338166,0.0002,2]
[313004654,1706589108708,417.76046315,0.00016719,2]
[313004655,1706589110047,4169.09021484,0.00012539,2]
[313004656,1706589114257,534.97170189,0.00016719,2]
[313004657,1706589115223,235.41505346,0.00016719,2]
[313004658,1706589124776,283.46338166,0.0002,2]
[313004659,1706589124985,260.75269255,0.00016719,2]
[313004660,1706589130099,498.10433852,0.00012539,2]
[313004661,1706589135223,204.90353861,0.00016719,2]
[313004662,1706589138280,534.97170189,0.00016719,2]
[313004663,1706589142130,283.46338166,0.0002,2]
[313004664,1706589144989,260.75269255,0.00016719,2]
[313004665,1706589158270,210.87232452,0.00016719,2]
[313004666,1706589160118,283.46338166,0.0002,2]
[313004667,1706589165390,260.75269255,0.00016719,2]
[313004668,1706589182118,283.46338166,0.0002,2]
[313004669,1706589182988,260.75269255,0.0002,2]
[313004670,1706589200139,253.58570469,0.0002,2]
[313004671,1706589202994,260.75269255,0.0002,2]
[313004672,1706589203263,267.35311566,0.0002,2]
[313004673,1706589207766,267.35311566,0.0002,2]
[313004674,1706589221016,190.54167773,0.0002,2]
[313004675,1706589249772,267.35311566,0.0002,2]
[313004676,1706589269772,267.35311566,0.0002,2]
[313004677,1706589287771,291.47822513,0.0002,2]
[313004679,1706590058814,151.0,0.0002,2]
[313004680,1706590145203,-732.32661051,0.00024258,2]
[313004681,1706590145223,-162.03710518,0.00024259,2]
[313004682,1706590145243,-1000.0,0.0002426,2]
[313004683,1706590145262,-693.83344823,0.00024262,2]
[313004684,1706590149347,-536.00973547,0.00024262,2]
[313004685,1706590149367,-164.31,0.00024266,2]
[313004686,1706590149389,-175.28540327,0.00024844,2]
[313004687,1706590149409,-150.0,0.00024944,2]
[313004688,1706590149429,-3333.19685262,0.00024945,2]
[313004689,1706590156390,-3466.14551835,0.00024945,2]
[313004690,1706590156410,-531.395775,0.0002811,2]
[313004691,1706590163081,-414.03595538,0.00025405,2]
[313004692,1706590164179,-207.88876306,0.00025405,2]
[313004693,1706590164199,-162.03710518,0.00026899,2]
[313004694,1706590164219,-1229.8431837,0.00026899,2]
[313004695,1706590164239,-263.94933428,0.0002811,2]
[313004696,1706590164259,-404.61,0.00028426,2]
[313004697,1706590164279,-300.0,0.00029082,2]
[313004698,1706590164299,-499.99,0.00029249,2]
[313004699,1706590164318,-150.0,0.00029249,2]
[313004700,1706590164337,-150.0,0.00029797,2]
[313004701,1706590164357,-1000.0,0.00029889,4]
[313004702,1706590164376,-25095.51,0.0002989,2]
[313004703,1706590164398,-250.0,0.00029938,2]
[313004704,1706590164418,-500.0,0.00029982,2]
[313004705,1706590164442,-500.0,0.0003,2]
[313004706,1706590164462,-5630.88659937,0.0003,2]
[313004707,1706590164483,-155.0,0.00030205,2]
[313004708,1706590164503,-250.0,0.00030206,2]
[313004709,1706590164529,-6713.8,0.00030221,2]
[313004710,1706590164549,-250.0,0.00030221,2]
[313004711,1706590164569,-1124.01,0.00030234,2]
[313004712,1706590164590,-1536.66830201,0.00030248,4]
[313004713,1706590164611,-14481.06,0.00030249,2]
[313004714,1706590164631,-237.46,0.00030295,2]
[313004715,1706590164654,-1000.0,0.00030296,2]
[313004716,1706590164673,-967.71,0.00030297,2]
[313004717,1706590164692,-187.01,0.00030306,2]
[313004718,1706590164712,-2500.0,0.00030307,3]
[313004719,1706590164731,-150.0,0.00030315,2]
[313004720,1706590164751,-229.82,0.00030332,2]
[313004721,1706590164771,-150.0,0.00030345,2]
[313004722,1706590164790,-557.97,0.0003039,2]
[313004723,1706590164813,-2000.0,0.00030472,2]
[313004724,1706590164833,-675.08,0.0003048,2]
[313004725,1706590164853,-750.0,0.00030521,2]
[313004726,1706590164871,-150.0,0.00030523,2]
[313004727,1706590164893,-175.28540324,0.00030526,2]
[313004728,1706590164912,-78.81733093,0.00030535,2]
[313004729,1706590169110,-171.41,0.00030406,2]
[313004730,1706590169130,-514.06266907,0.00030535,2]
[313004731,1706590169150,-1958.13224041,0.00030562,2]
[313004732,1706590172162,-1832.34775959,0.00030562,2]
[313004733,1706590172182,-614.15,0.00030606,2]
[313004734,1706590172203,-171.41,0.0003067,2]
[313004735,1706590172225,-404.61,0.0003069,2]
[313004736,1706590172245,-150.0,0.00030893,2]
[313004737,1706590172265,-171.41,0.00030934,2]
[313004738,1706590172284,-174.65,0.00030961,2]
[313004739,1706590172304,-165.96,0.00031118,2]
[313004740,1706590172325,-324.92,0.00031118,2]
[313004741,1706590172345,-171.41,0.00031198,2]
[313004742,1706590172366,-439.63,0.00031328,2]
[313004743,1706590172387,-150.0,0.00031441,2]
[313004744,1706590172408,-171.41,0.00031462,2]
[313004745,1706590172428,-251.7794,0.00031587,2]
[313004746,1706590172448,-1115.20303952,0.00031687,14]
[313004747,1706590172467,-1431.33,0.00031687,2]
[313004748,1706590172488,-1207.56,0.00031687,2]
[313004749,1706590172509,-200.0,0.00031687,2]
[313004750,1706590172532,-171.41,0.00031726,2]
[313004751,1706590172553,-171.41,0.0003199,2]
[313004752,1706590172573,-283.08570456,0.00032117,4]
[313004753,1706590172594,-614.15,0.0003225,2]
[313004754,1706590172616,-44176.40414582,0.00032441,2]
[313004755,1706590172637,-800.0,0.00032515,3]
[313004756,1706590172657,-410.304,0.00032679,2]
[313004757,1706590172677,-365.7836,0.00032679,2]
[313004758,1706590172697,-402.10481404,0.0003269,6]
[313004759,1706590172719,-32816.1113636,0.0003277,3]
[313004760,1706590172740,-801.62768654,0.00032776,4]
[313004761,1706590172760,-803.38797325,0.00032776,4]
[313004762,1706590172780,-371.01115216,0.00032776,4]
[313004763,1706590172801,-292.50881528,0.00032777,4]
[313004764,1706590172823,-2304.07608769,0.00032777,2]
[313004765,1706590172843,-818.62922,0.00032777,2]
[313004766,1706590172864,-155.3695107,0.00032778,4]
[313004767,1706590172883,-10570.52821242,0.00032778,4]
[313004768,1706590172903,-33455.30751483,0.00032778,10]
[313004773,1706590232289,-208.70021055,0.00028516,2]
[313004774,1706590232300,-418.9266389,0.000295,2]
[313004775,1706590232553,-555.79337352,0.000295,2]
[313004776,1706590232566,-36.67130337,0.000295,2]
[313004777,1706590232578,-500.0,0.0003,2]
[313004778,1706590232588,-746.51869663,0.00031331,2]
[313004779,1706590232612,-5808.53689687,0.00031331,2]
[313004781,1706590232627,-650.41397724,0.00031331,2]
[313004783,1706590232640,-492.21325743,0.00031331,2]
[313004786,1706590232653,-8187.96528008,0.00031331,2]
[313004788,1706590232666,-1169.53619494,0.00031331,2]
[313004790,1706590232679,-3025.38731659,0.00031331,2]
[313004793,1706590232691,-1934.24120179,0.00031331,2]
[313004797,1706590232720,-1865.18717843,0.00031331,2]
[313004799,1706590232731,-1563.29654586,0.00032778,14]
[313004801,1706590232742,-15608.68052345,0.00032778,10]
[313004803,1706590232752,-156.22998821,0.00032778,4]
[313004806,1706590232763,-155.0,0.00032778,2]
[313004808,1706590232773,-5630.88659937,0.00032778,2]
[313004810,1706590232785,-247.45337434,0.00032779,4]
[313004812,1706590232795,-14139.54081534,0.00032779,4]
[313004814,1706590232806,-70735.24722823,0.0003278,5]
[313004817,1706590232819,-278.02291684,0.0003278,5]
[313004820,1706590232843,-385.33323618,0.0003278,5]
[313004831,1706590238390,-730.50066288,0.0003278,5]
[313004832,1706590238498,-320.02750419,0.0003278,5]
[313004833,1706590238828,-1496.02177756,0.0003278,5]
[313004859,1706590239096,-797.04011047,0.0003278,5]
[313004860,1706590239108,-1464.98189673,0.0003278,5]
[313004861,1706590239128,-553.19678644,0.0003278,5]
[313004862,1706590239213,-289.4002629,0.0003278,5]
[313004863,1706590239226,-2377.06365989,0.0003278,5]
[313004864,1706590239237,-1025.49458913,0.0003278,5]
[313004865,1706590239248,-848.26710872,0.0003278,5]
[313004866,1706590239271,-664.88675611,0.0003278,5]
[313004875,1706590240902,-816.22100029,0.00032341,2]
[313004876,1706590240916,-735.43609094,0.00032341,2]
[313004877,1706590240930,-336.91501424,0.00032341,2]
[313004878,1706590240943,-1138.50001,0.00032341,2]
[313004879,1706590241008,-354.7465551,0.00032341,2]
[313004880,1706590241021,-543.43566378,0.00032341,2]
[313004881,1706590241033,-525.21345931,0.00032341,2]
[313004882,1706590241045,-2200.51,0.00032341,2]
[313004883,1706590241056,-3125.37646741,0.00032341,2]
[313004884,1706590241718,-376.62853893,0.00032341,2]
[313004885,1706590241733,-17892.45116394,0.0003278,5]
[313004886,1706590241767,-639.14654176,0.0003278,5]
[313004887,1706590241780,-3303.94373171,0.0003278,5]
[313004913,1706590243372,-8861.70707,0.0003278,5]
[313004915,1706590243561,-6530.74693116,0.0003278,5]
[313004916,1706590243578,-12067.4288166,0.0003278,5]
[313004917,1706590243593,-543.33974753,0.0003278,5]
[313004918,1706590243606,-478.13774529,0.0003278,5]
[313004919,1706590243705,-653.03474555,0.0003278,5]
[313004920,1706590243717,-5242.2288499,0.0003278,5]
[313004921,1706590243728,-567.36316,0.0003278,5]
[313004941,1706590246416,-5630.88659937,0.00032778,2]
[313004943,1706590246426,-35989.32583994,0.0003278,5]
[313004957,1706590246632,-20652.55796317,0.0003278,5]
[313004958,1706590246642,-3683.69203683,0.0003279,3]
[313004959,1706590246688,-405.81528365,0.0003279,3]
[313004960,1706590246701,-425.58743,0.0003279,3]
[313004961,1706590246713,-2329.17685,0.0003279,3]
[313004962,1706590246728,-318.62652592,0.0003279,3]
[313004963,1706590269969,2454849.0,0.00023,2]
[313004964,1706590293436,321.26667589,0.00022,2]
[313004965,1706590353039,155.76379742,0.00022,2]
[313004967,1706590452965,-3337.59282624,0.00022994,2]
[313004968,1706590452987,-155.0,0.00022995,2]
[313004969,1706590453007,-1000.0,0.00022995,2]
[313004970,1706590453027,-306.29925579,0.00022996,2]
[313004971,1706590453046,-300.0,0.00022996,2]
[313004972,1706590453066,-4101.10791797,0.00022997,2]
[313004973,1706590464337,235.74212897,0.00022,2]
[313004979,1706590723161,28850.46081063,0.0002189,2]
[313004986,1706590877404,164.31,0.00018186,2]
[313004987,1706590907809,510.23,0.00020877,2]
[313004988,1706591050391,8998.91,0.00022498,2]
[313004989,1706591064494,562.0,0.00022498,2]
[313004990,1706591101782,2277.34,0.00022001,2]
[313004991,1706591143176,23900.0,0.00021984,2]
[313004992,1706591189959,2000.0,0.00021952,2]
[313004993,1706591192560,2000.0,0.00021952,2]